lending/lending_fUSD_20260222
["ID","MTS","AMOUNT","RATE_DAILY","PERIOD"]
[406312688,1771722641697,-200.0,0.00038801,63]
[406312689,1771722641710,-167.22,0.00038849,2]
[406312690,1771722641719,-170.97074238,0.00038885,2]
[406312691,1771722641728,-435.08,0.00038917,2]
[406312692,1771722641738,-578.20924309,0.00039161,2]
[406312693,1771722641747,-167.89674462,0.00039161,2]
[406312694,1771722641756,-355.01305697,0.00039161,2]
[406312695,1771722641766,-174.61919142,0.00039161,2]
[406312696,1771722641776,-721.12765535,0.00039161,2]
[406312697,1771722641786,-151.0,0.00039161,2]
[406312698,1771722641795,-500.0,0.00039161,2]
[406312699,1771722641804,-500.0,0.00039161,2]
[406312700,1771722641813,-500.0,0.00039161,2]
[406312701,1771722641822,-500.0,0.00039161,2]
[406312702,1771722641831,-500.0,0.00039161,2]
[406312703,1771722641840,-500.0,0.00039161,2]
[406312704,1771722641848,-500.0,0.00039161,2]
[406312705,1771722641858,-500.0,0.00039161,2]
[406312706,1771722641867,-500.0,0.00039161,2]
[406312707,1771722641876,-500.0,0.00039161,2]
[406312708,1771722641885,-646.97769773,0.00039161,2]
[406312709,1771722641894,-500.0,0.00039161,2]
[406312710,1771722641903,-500.0,0.00039161,2]
[406312711,1771722641914,-693.3919763,0.00039161,2]
[406312712,1771722641924,-151.0,0.00039216,2]
[406312713,1771722641933,-719.04747942,0.00039216,2]
[406312714,1771722641942,-151.0,0.00039271,2]
[406312715,1771722641953,-745.65223616,0.00039271,2]
[406312716,1771722641963,-151.0,0.00039326,2]
[406312717,1771722641972,-773.2413689,0.00039326,2]
[406312718,1771722641982,-801.85129955,0.00039381,2]
[406312719,1771722641992,-1000.0,0.00039429,2]
[406312720,1771722642002,-831.51979763,0.00039436,2]
[406312721,1771722642012,-4411.74480328,0.00039471,2]
[406312722,1771722642021,-862.28603014,0.00039491,2]
[406312723,1771722642031,-894.19061326,0.00039546,2]
[406312724,1771722642040,-927.27566595,0.00039601,2]
[406312725,1771722642050,-1712.0,0.00039607,120]
[406312726,1771722642060,-640.0,0.00039607,120]
[406312727,1771722642069,-450.0,0.00039607,120]
[406312728,1771722642079,-519.84136949,0.00039611,2]
[406312729,1771722642089,-961.58486559,0.00039656,2]
[406312730,1771722642100,-997.16350561,0.00039711,2]
[406312731,1771722642109,-175.99,0.0003992,14]
[406312732,1771722642119,-151.0,0.0004,120]
[406312733,1771722642129,-258.32,0.00040088,14]
[406312734,1771722642138,-1500.0,0.000403,2]
[406312735,1771722642148,-519.84136943,0.00040376,28]
[406312736,1771722642156,-177.66,0.00040394,14]
[406312737,1771722642165,-165.15,0.00040452,2]
[406312738,1771722642174,-500.0,0.00040462,30]
[406312739,1771722642183,-500.0,0.00040462,30]
[406312740,1771722642192,-500.0,0.00040462,30]
[406312741,1771722642201,-551.0,0.00040462,30]
[406312742,1771722642210,-150.0,0.00040462,30]
[406312743,1771722642219,-500.0,0.00040462,30]
[406312744,1771722642228,-500.0,0.00040462,30]
[406312745,1771722642238,-500.0,0.00040462,30]
[406312746,1771722642247,-150.0,0.00040462,30]
[406312747,1771722642256,-500.0,0.00040462,30]
[406312748,1771722642265,-500.0,0.00040462,30]
[406312749,1771722642275,-150.0,0.00040462,30]
[406312750,1771722642285,-500.0,0.00040462,30]
[406312751,1771722642295,-150.0,0.00040462,30]
[406312752,1771722642304,-150.0,0.00040462,2]
[406312753,1771722642314,-150.0,0.00040462,30]
[406312754,1771722642323,-500.0,0.00040462,30]
[406312755,1771722642332,-161.43633423,0.00040462,30]
[406312756,1771722642341,-500.0,0.00040462,30]
[406312757,1771722642351,-500.0,0.00040462,30]
[406312758,1771722642361,-500.0,0.00040462,30]
[406312759,1771722642370,-500.0,0.00040462,30]
[406312760,1771722642379,-500.0,0.00040517,30]
[406312761,1771722642389,-500.0,0.00040517,30]
[406312762,1771722642398,-500.0,0.00040517,30]
[406312763,1771722642407,-551.0,0.00040517,30]
[406312764,1771722642416,-150.0,0.00040517,30]
[406312765,1771722642425,-500.0,0.00040517,30]
[406312766,1771722642435,-500.0,0.00040517,30]
[406312767,1771722642444,-500.0,0.00040517,30]
[406312768,1771722642452,-150.0,0.00040517,30]
[406312769,1771722642462,-500.0,0.00040517,30]
[406312770,1771722642471,-500.0,0.00040517,30]
[406312771,1771722642480,-500.0,0.00040517,30]
[406312772,1771722642489,-150.0,0.00040517,30]
[406312773,1771722642498,-500.0,0.00040517,30]
[406312774,1771722642507,-500.0,0.00040517,30]
[406312775,1771722642516,-500.0,0.00040517,30]
[406312776,1771722642525,-500.0,0.00040517,30]
[406312777,1771722642534,-500.0,0.00040517,30]
[406312778,1771722642543,-479.0,0.00040572,30]
[406312779,1771722642551,-288.24134749,0.00040572,30]
[406312780,1771722642560,-500.0,0.00040572,30]
[406312781,1771722642569,-551.0,0.00040572,30]
[406312782,1771722642577,-150.0,0.00040572,30]
[406312783,1771722642586,-500.0,0.00040572,30]
[406312784,1771722642595,-500.0,0.00040572,30]
[406312785,1771722642603,-500.0,0.00040572,30]
[406312786,1771722642612,-236.26020766,0.00040572,30]
[406312787,1771722642621,-500.0,0.00040572,30]
[406312788,1771722642632,-500.0,0.00040572,30]
[406312789,1771722642642,-382.0,0.00040572,30]
[406312790,1771722642651,-287.38563793,0.00040572,30]
[406312791,1771722642660,-492.99694285,0.00040572,30]
[406312792,1771722642669,-500.0,0.00040572,30]
[406312793,1771722642678,-500.0,0.00040572,30]
[406312794,1771722642687,-500.0,0.00040572,30]
[406312795,1771722642696,-278.50973652,0.00040572,30]
[406312796,1771722642710,-1140.62316368,0.00040579,2]
[406312797,1771722642719,-1179.01155832,0.00040579,2]
[406312798,1771722642728,-300.0,0.00040579,2]
[406312799,1771722642737,-409.59963556,0.00040579,2]
[406312801,1771722642747,-611.55894939,0.00040579,2]
[406312803,1771722642756,-495.07134435,0.00040579,2]
[406312805,1771722642765,-300.0,0.00040579,2]
[406312807,1771722642774,-855.46737255,0.00040579,2]
[406312808,1771722642786,-884.25866852,0.00040579,2]
[406312809,1771722642795,-300.0,0.00040579,2]
[406312810,1771722642805,-307.19972653,0.00040579,2]
[406312811,1771722642814,-458.66921193,0.00040579,2]
[406312812,1771722642824,-371.30350818,0.00040579,2]
[406312813,1771722642843,-691.25953205,0.00040579,2]
[406312815,1771722643044,-408.20751085,0.00040579,2]
[406312817,1771722643053,-500.0,0.00040579,2]
[406312818,1771722643063,-1081.79077738,0.00040579,2]
[406312821,1771722643072,-855.46737256,0.00040579,2]
[406312822,1771722643081,-884.25866853,0.00040579,2]
[406312823,1771722643090,-300.0,0.00040579,2]
[406312824,1771722643099,-307.19972653,0.00040579,2]
[406312825,1771722643109,-458.66921194,0.00040579,2]
[406312826,1771722643118,-371.30350818,0.00040579,2]
[406312827,1771722643127,-306.15563292,0.00040579,2]
[406312828,1771722643136,-360.59692582,0.00040579,2]
[406312829,1771722643145,-500.0,0.00040626,30]
[406312830,1771722643154,-551.0,0.00040626,30]
[406312831,1771722643163,-150.0,0.00040626,30]
[406312832,1771722643172,-500.0,0.00040626,30]
[406312833,1771722643181,-500.0,0.00040626,30]
[406312834,1771722643190,-500.0,0.00040626,30]
[406312835,1771722643200,-500.0,0.00040626,30]
[406312836,1771722643209,-500.70947646,0.00040626,30]
[406312837,1771722643218,-501.49147741,0.00040626,30]
[406312838,1771722643227,-500.0,0.00040626,30]
[406312839,1771722643237,-500.0,0.00040626,30]
[406312840,1771722643246,-1072.45485431,0.00040642,120]
[406312841,1771722643255,-500.0,0.00040681,30]
[406312842,1771722643265,-265.99896868,0.00040681,30]
[406312843,1771722643274,-551.0,0.00040681,30]
[406312844,1771722643283,-500.0,0.00040681,30]
[406312845,1771722643293,-500.0,0.00040681,30]
[406312846,1771722643302,-500.0,0.00040681,30]
[406312847,1771722643311,-151.0,0.000407,120]
[406312848,1771722643321,-500.0,0.00040736,30]
[406312849,1771722643330,-551.0,0.00040736,30]
[406312850,1771722643340,-500.0,0.00040736,30]
[406312851,1771722643349,-500.0,0.00040736,30]
[406312852,1771722643359,-1622.20183599,0.00040749,15]
[406312853,1771722643368,-500.0,0.00040791,30]
[406312854,1771722643378,-551.0,0.00040791,30]
[406312855,1771722643387,-280.56136769,0.00040791,30]
[406312856,1771722643397,-176.0,0.00040791,30]
[406312857,1771722643406,-4411.74480328,0.00040828,15]
[406312858,1771722643415,-500.0,0.00040846,30]
[406312859,1771722643424,-551.0,0.00040846,30]
[406312860,1771722643433,-500.0,0.00040849,8]
[406312861,1771722643444,-500.0,0.00040849,8]
[406312862,1771722643454,-500.0,0.00040849,8]
[406312863,1771722643463,-500.0,0.00040849,8]
[406312864,1771722643472,-500.0,0.00040849,8]
[406312865,1771722643481,-500.0,0.00040849,8]
[406312866,1771722643491,-500.0,0.00040849,8]
[406312867,1771722643500,-500.0,0.00040849,8]
[406312868,1771722643509,-500.0,0.00040849,8]
[406312869,1771722643518,-500.0,0.00040849,8]
[406312870,1771722643527,-500.0,0.00040849,8]
[406312871,1771722643536,-500.0,0.00040849,8]
[406312872,1771722643544,-550.6735607,0.00040849,8]
[406312873,1771722643554,-349.79589102,0.00040849,8]
[406312874,1771722643562,-500.0,0.00040849,8]
[406312875,1771722643572,-500.0,0.00040849,8]
[406312876,1771722643580,-500.0,0.00040849,8]
[406312877,1771722643590,-500.0,0.00040849,8]
[406312878,1771722643599,-463.4906551,0.00040849,8]
[406312879,1771722643609,-500.0,0.000409,30]
[406312880,1771722643619,-551.0,0.000409,30]
[406312881,1771722643627,-1140.0,0.00040942,2]
[406312882,1771722643637,-66090.0,0.0004095,60]
[406312883,1771722643646,-743.0,0.0004095,30]
[406312884,1771722643655,-740.0,0.0004095,30]
[406312885,1771722643664,-751.0,0.0004095,30]
[406312886,1771722643673,-742.0,0.0004095,30]
[406312887,1771722643682,-748.0,0.0004095,30]
[406312888,1771722643691,-735.0,0.0004095,30]
[406312889,1771722643704,-734.0,0.0004095,30]
[406312890,1771722643713,-742.0,0.0004095,30]
[406312891,1771722643722,-754.0,0.0004095,30]
[406312892,1771722643732,-734.0,0.0004095,30]
[406312893,1771722643741,-728.0,0.0004095,30]
[406312894,1771722643751,-735.0,0.0004095,30]
[406312895,1771722643759,-732.0,0.0004095,30]
[406312896,1771722643768,-738.0,0.0004095,30]
[406312897,1771722643778,-726.0,0.0004095,30]
[406312898,1771722643788,-752.0,0.0004095,30]
[406312899,1771722643798,-742.0,0.0004095,30]
[406312900,1771722643807,-750.0,0.0004095,30]
[406312901,1771722643816,-739.0,0.0004095,30]
[406312902,1771722643825,-736.0,0.0004095,30]
[406312903,1771722643834,-733.0,0.0004095,30]
[406312904,1771722643843,-740.0,0.0004095,30]
[406312905,1771722643852,-746.0,0.0004095,30]
[406312906,1771722643861,-745.0,0.0004095,30]
[406312907,1771722643871,-500.0,0.00040955,30]
[406312908,1771722643880,-551.0,0.00040955,30]
[406312909,1771722643889,-369.0,0.00040969,7]
[406312910,1771722643899,-500.0,0.0004101,30]
[406312912,1771722643908,-551.0,0.0004101,30]
[406312914,1771722643917,-380.0,0.00041065,30]
[406312916,1771722643926,-551.0,0.00041065,30]
[406312918,1771722643935,-842.0,0.00041096,120]
[406312920,1771722643945,-739.0,0.00041096,30]
[406312922,1771722643954,-200.0,0.00041096,20]
[406312925,1771722643964,-200.0,0.00041096,20]
[406312927,1771722643972,-200.0,0.00041096,20]
[406312929,1771722643981,-739.0,0.00041103,30]
[406312931,1771722643990,-551.0,0.0004112,30]
[406312932,1771722643999,-744.0,0.00041125,30]
[406312934,1771722644008,-519.84136943,0.00041142,28]
[406312936,1771722644017,-165.15,0.00041164,2]
[406312938,1771722644026,-551.0,0.00041174,30]
[406312940,1771722644037,-1622.20183593,0.00041218,15]
[406312942,1771722644046,-726.0,0.00041219,30]
[406312944,1771722644055,-551.0,0.00041229,30]
[406312945,1771722644065,-551.0,0.00041284,30]
[406312946,1771722644073,-369.0,0.0004133,2]
[406312947,1771722644082,-551.0,0.00041339,30]
[406312948,1771722644091,-214.16,0.00041371,120]
[406312949,1771722644100,-551.0,0.00041394,30]
[406312950,1771722644110,-151.0,0.000414,120]
[406312951,1771722644120,-551.0,0.00041448,30]
[406312952,1771722644128,-551.0,0.00041503,30]
[406312953,1771722644137,-1745.43,0.00041509,120]
[406312954,1771722644147,-551.0,0.00041558,30]
[406312955,1771722644155,-369.0,0.00041603,120]
[406312956,1771722644165,-746.0,0.00041605,30]
[406312957,1771722644174,-551.0,0.00041613,30]
[406312958,1771722644183,-842.0,0.00041644,120]
[406312959,1771722644192,-551.0,0.00041667,30]
[406312960,1771722644201,-1622.20183593,0.00041687,15]
[406312961,1771722644211,-566.86551778,0.00041722,30]
[406312962,1771722644220,-500.0,0.00041859,120]
[406312963,1771722644229,-200.0,0.00041859,120]
[406312964,1771722644238,-178.85,0.00041891,2]
[406312965,1771722644247,-472.18,0.00041893,120]
[406312966,1771722644257,-747.8093786,0.000419,2]
[406312967,1771722644266,-2909.07,0.00041902,2]
[406312968,1771722644275,-519.84136943,0.00041907,28]
[406312969,1771722644285,-151.0,0.000421,120]
[406312970,1771722644295,-1622.20183593,0.00042156,15]
[406312971,1771722644307,-4411.74480328,0.00042185,15]
[406312972,1771722644317,-411.081608,0.000422,50]
[406312973,1771722644326,-369.0,0.00042237,2]
[406312974,1771722644335,-1140.0,0.00042263,7]
[406312975,1771722644344,-66090.0,0.000423,60]
[406312976,1771722644356,-200.0,0.00042367,2]
[406312977,1771722644365,-200.0,0.00042367,2]
[406312978,1771722644374,-200.0,0.00042367,2]
[406312979,1771722644383,-200.0,0.00042367,2]
[406312980,1771722644394,-200.0,0.00042367,2]
[406312981,1771722644403,-200.0,0.00042367,2]
[406312982,1771722644413,-200.0,0.00042367,2]
[406312983,1771722644423,-200.0,0.00042367,2]
[406312984,1771722644432,-200.0,0.00042367,2]
[406312985,1771722644442,-200.0,0.00042367,2]
[406312986,1771722644451,-200.0,0.00042367,2]
[406312987,1771722644461,-200.0,0.00042367,2]
[406312988,1771722644470,-200.0,0.00042367,2]
[406312989,1771722644479,-200.0,0.00042367,2]
[406312990,1771722644487,-200.0,0.00042367,7]
[406312991,1771722644497,-200.0,0.00042367,7]
[406312992,1771722644507,-200.0,0.00042367,7]
[406312993,1771722644516,-200.0,0.00042367,7]
[406312994,1771722644527,-200.0,0.00042367,7]
[406312995,1771722644536,-200.0,0.00042367,7]
[406312996,1771722644545,-200.0,0.00042367,7]
[406312997,1771722644555,-200.0,0.00042367,7]
[406312998,1771722644563,-200.0,0.00042367,7]
[406312999,1771722644572,-200.0,0.00042367,7]
[406313000,1771722644584,-200.0,0.00042367,7]
[406313001,1771722644594,-200.0,0.00042367,7]
[406313002,1771722644603,-200.0,0.00042367,7]
[406313003,1771722644612,-200.0,0.00042367,7]
[406313004,1771722644621,-200.0,0.00042367,7]
[406313005,1771722644634,-200.0,0.00042367,7]
[406313006,1771722644643,-200.0,0.00042367,7]
[406313007,1771722644652,-200.0,0.00042367,7]
[406313008,1771722644661,-200.0,0.00042367,7]
[406313009,1771722644670,-200.0,0.00042367,7]
[406313010,1771722644679,-200.0,0.00042367,7]
[406313011,1771722644687,-200.0,0.00042367,7]
[406313012,1771722644698,-200.0,0.00042367,7]
[406313013,1771722644710,-200.0,0.00042367,7]
[406313014,1771722644719,-200.0,0.00042367,7]
[406313015,1771722644729,-200.0,0.00042367,7]
[406313016,1771722644737,-200.0,0.00042367,7]
[406313017,1771722644748,-200.0,0.00042367,7]
[406313018,1771722644757,-200.0,0.00042367,7]
[406313019,1771722644766,-200.0,0.00042367,7]
[406313020,1771722644777,-200.0,0.00042367,7]
[406313021,1771722644786,-200.0,0.00042367,7]
[406313022,1771722644794,-200.0,0.00042367,7]
[406313023,1771722644803,-200.0,0.00042367,7]
[406313024,1771722644813,-198.0,0.00042367,7]
[406313025,1771722644822,-500.0,0.00042438,120]
[406313026,1771722644832,-369.0,0.0004246,2]
[406313027,1771722644841,-369.0,0.00042478,7]
[406313028,1771722644850,-596.0,0.00042486,2]
[406313029,1771722644859,-150.0,0.00042486,2]
[406313030,1771722644868,-150.0,0.00042486,2]
[406313031,1771722644878,-152.0,0.00042486,2]
[406313032,1771722644888,-369.0,0.00042523,2]
[406313033,1771722644897,-500.0,0.00042575,120]
[406313034,1771722644906,-8798.908382,0.00042586,6]
[406313035,1771722644915,-8893.0,0.00042606,7]
[406313036,1771722644924,-1622.20183593,0.00042625,15]
[406313037,1771722644933,-519.84136943,0.00042673,28]
[406313038,1771722644943,-369.0,0.00042756,2]
[406313039,1771722644952,-1139.0,0.00042776,2]
[406313040,1771722644961,-6562.6947821,0.00042793,10]
[406313041,1771722644970,-151.0,0.000428,120]
[406313042,1771722644979,-369.0,0.00042803,7]
[406313043,1771722644988,-1139.0,0.00042816,2]
[406313044,1771722644997,-369.0,0.00042858,2]
[406313045,1771722645006,-150.0,0.00043014,120]
[406313046,1771722645015,-246.0,0.00043069,120]
[406313047,1771722645024,-200.0,0.00043093,120]
[406313048,1771722645034,-1622.20183593,0.00043093,15]
[406313049,1771722645043,-369.0,0.00043118,7]
[406313050,1771722645052,-350.0,0.00043143,2]
[406313051,1771722645061,-369.0,0.00043213,2]
[406313052,1771722645070,-200.0,0.00043233,120]
[406313053,1771722645079,-200.0,0.00043233,120]
[406313054,1771722645088,-200.0,0.00043233,120]
[406313055,1771722645099,-198.68,0.00043233,120]
[406313056,1771722645109,-236.87193132,0.00043353,14]
[406313057,1771722645118,-369.0,0.00043367,120]
[406313058,1771722645128,-1000.0,0.00043371,2]
[406313059,1771722645137,-300.220852,0.00043377,113]
[406313060,1771722645146,-234.66,0.00043383,14]
[406313061,1771722645154,-154.03173332,0.0004339,2]
[406313062,1771722645164,-172.22,0.00043398,14]
[406313063,1771722645173,-1999.0,0.00043404,30]
[406313064,1771722645183,-150.0,0.00043417,120]
[406313065,1771722645194,-519.84136943,0.00043438,28]
[406313066,1771722645204,-500.0,0.0004344,60]
[406313067,1771722645213,-511.40531467,0.0004344,60]
[406313068,1771722645222,-500.0,0.0004344,60]
[406313069,1771722645232,-151.0,0.000435,120]
[406313070,1771722645241,-172.22,0.00043507,14]
[406313071,1771722645250,-4411.74480328,0.00043543,15]
[406313072,1771722645260,-1622.20183593,0.00043562,15]
[406313073,1771722645270,-350.0,0.00043579,3]
[406313074,1771722645279,-369.0,0.00043604,2]
[406313075,1771722645288,-172.22,0.00043617,14]
[406313076,1771722645298,-369.0,0.00043636,7]
[406313077,1771722645307,-66090.0,0.0004365,60]
[406313078,1771722645317,-8999.0,0.00043653,5]
[406313079,1771722645326,-374.80934697,0.00043673,5]
[406313080,1771722645335,-150.0,0.00043673,10]
[406313081,1771722645344,-165.05223989,0.00043673,10]
[406313082,1771722645352,-300.0,0.00043673,10]
[406313083,1771722645362,-1480.98743843,0.00043717,2]
[406313084,1771722645372,-1000.0,0.000438,30]
[406313085,1771722645381,-1000.0,0.000438,15]
[406313086,1771722645390,-717.23076923,0.00043808,120]
[406313087,1771722645399,-189.13770113,0.00043836,2]
[406313088,1771722645408,-5928.71,0.000439,14]
[406313089,1771722645418,-2000.0,0.000439,16]
[406313090,1771722645428,-500.0,0.00043959,120]
[406313091,1771722645437,-500.0,0.00043988,60]
[406313092,1771722645446,-500.0,0.00043988,60]
[406313093,1771722645455,-379.44,0.00044,120]
[406313094,1771722645464,-1500.0,0.00044,2]
[406313095,1771722645473,-204.25852786,0.00044,2]
[406313096,1771722645483,-1127.0,0.00044,120]
[406313097,1771722645492,-1622.20183593,0.00044031,15]
[406313098,1771722645502,-500.0,0.0004406,30]
[406313099,1771722645511,-210.58321445,0.0004406,60]
[406313100,1771722645519,-500.0,0.0004406,60]
[406313101,1771722645529,-500.0,0.0004406,60]
[406313102,1771722645537,-500.0,0.0004408,30]
[406313103,1771722645547,-3000.0,0.000441,16]
[406313104,1771722645556,-8000.0,0.00044136,120]
[406313105,1771722645566,-9658.0,0.00044145,4]
[406313106,1771722645576,-4000.0,0.000442,16]
[406313107,1771722645585,-151.0,0.000442,120]
[406313108,1771722645594,-519.84136943,0.00044204,28]
[406313109,1771722645603,-250.0,0.00044221,10]
[406313110,1771722645613,-27969.36022376,0.00044258,55]
[406313111,1771722645622,-9635.0,0.00044258,3]
[406313112,1771722645634,-168.06204034,0.00044274,120]
[406313113,1771722645645,-5000.0,0.000443,16]
[406313114,1771722645654,-200.0,0.000443,120]
[406313115,1771722645664,-200.0,0.00044327,120]
[406313116,1771722645673,-369.0,0.00044329,2]
[406313117,1771722645682,-315.36931018,0.00044373,7]
[406313118,1771722645691,-500.0,0.00044383,120]
[406313119,1771722645702,-500.0,0.00044383,120]
[406313120,1771722645712,-500.0,0.00044383,120]
[406313121,1771722645721,-500.0,0.00044383,120]
[406313122,1771722645731,-500.0,0.00044383,120]
[406313123,1771722645741,-500.0,0.00044383,120]
[406313124,1771722645751,-500.0,0.00044383,120]
[406313125,1771722645760,-500.0,0.00044383,120]
[406313126,1771722645771,-500.0,0.00044383,120]
[406313127,1771722645779,-500.0,0.00044383,120]
[406313128,1771722645788,-500.0,0.00044383,120]
[406313129,1771722645799,-500.0,0.00044383,120]
[406313130,1771722645808,-500.0,0.00044383,120]
[406313131,1771722645817,-500.0,0.00044383,120]
[406313132,1771722645826,-500.0,0.00044383,120]
[406313133,1771722645835,-557.8930798,0.00044383,120]
[406313134,1771722645843,-574.77,0.00044383,2]
[406313135,1771722645853,-500.0,0.00044383,120]
[406313136,1771722645862,-500.0,0.00044383,120]
[406313137,1771722645871,-535.29207704,0.00044383,120]
[406313138,1771722645881,-203.43609164,0.00044383,120]
[406313139,1771722645890,-500.0,0.00044383,120]
[406313140,1771722645899,-500.0,0.00044383,120]
[406313141,1771722645908,-500.0,0.00044383,120]
[406313142,1771722645916,-462.4417753,0.00044383,120]
[406313143,1771722645926,-500.0,0.00044383,120]
[406313144,1771722645935,-500.0,0.00044383,120]
[406313145,1771722645944,-500.0,0.00044383,120]
[406313146,1771722645952,-500.0,0.00044383,120]
[406313147,1771722645962,-500.0,0.00044383,120]
[406313148,1771722645971,-500.0,0.00044383,120]
[406313149,1771722645980,-500.0,0.00044383,120]
[406313150,1771722645989,-500.0,0.00044383,120]
[406313151,1771722645998,-500.0,0.00044383,120]
[406313152,1771722646008,-500.0,0.00044383,120]
[406313153,1771722646017,-500.0,0.00044383,120]
[406313154,1771722646026,-500.0,0.00044383,120]
[406313155,1771722646035,-500.0,0.00044383,120]
[406313156,1771722646044,-500.0,0.00044383,120]
[406313157,1771722646053,-472.72423226,0.00044383,120]
[406313158,1771722646063,-500.0,0.00044383,120]
[406313159,1771722646072,-500.0,0.00044383,120]
[406313160,1771722646081,-500.0,0.00044383,120]
[406313161,1771722646091,-409.86925691,0.00044383,120]
[406313162,1771722646101,-327.56014088,0.00044383,7]
[406313163,1771722646110,-500.0,0.00044383,60]
[406313164,1771722646119,-500.0,0.00044383,120]
[406313165,1771722646128,-563.38216052,0.00044383,120]
[406313166,1771722646137,-500.0,0.00044383,120]
[406313167,1771722646146,-500.0,0.00044383,120]
[406313168,1771722646155,-500.0,0.00044383,120]
[406313169,1771722646164,-500.0,0.00044383,120]
[406313170,1771722646173,-500.0,0.00044383,120]
[406313172,1771722646182,-500.0,0.00044383,120]
[406313174,1771722646191,-500.0,0.00044383,120]
[406313176,1771722646200,-500.0,0.00044383,120]
[406313178,1771722646209,-500.0,0.00044383,120]
[406313180,1771722646218,-500.0,0.00044383,120]
[406313182,1771722646227,-500.0,0.00044383,120]
[406313184,1771722646236,-500.0,0.00044383,120]
[406313186,1771722646244,-500.0,0.00044383,120]
[406313188,1771722646253,-500.0,0.00044383,120]
[406313190,1771722646262,-508.84143228,0.00044383,120]
[406313192,1771722646271,-500.0,0.00044383,120]
[406313194,1771722646280,-168.13213975,0.00044383,120]
[406313196,1771722646289,-500.0,0.00044383,120]
[406313197,1771722646298,-500.0,0.00044383,120]
[406313198,1771722646307,-500.0,0.00044383,120]
[406313199,1771722646316,-500.0,0.00044383,120]
[406313200,1771722646325,-500.0,0.00044383,120]
[406313201,1771722646334,-500.0,0.00044383,120]
[406313202,1771722646343,-500.0,0.00044383,120]
[406313203,1771722646352,-500.0,0.00044383,120]
[406313204,1771722646362,-538.12471795,0.00044383,120]
[406313205,1771722646371,-500.0,0.00044383,120]
[406313206,1771722646380,-500.0,0.00044383,120]
[406313207,1771722646389,-500.0,0.00044383,120]
[406313208,1771722646399,-500.0,0.00044383,120]
[406313209,1771722646408,-500.0,0.00044383,120]
[406313210,1771722646416,-500.0,0.00044383,120]
[406313211,1771722646425,-500.0,0.00044383,120]
[406313212,1771722646437,-500.0,0.00044383,120]
[406313213,1771722646446,-513.06001173,0.00044383,120]
[406313214,1771722646455,-500.0,0.00044383,120]
[406313215,1771722646464,-500.0,0.00044383,120]
[406313216,1771722646473,-500.0,0.00044383,120]
[406313217,1771722646482,-500.0,0.00044383,120]
[406313218,1771722646491,-500.0,0.00044383,120]
[406313219,1771722646500,-500.0,0.00044383,60]
[406313220,1771722646510,-538.87115924,0.00044383,60]
[406313221,1771722646519,-222.11,0.00044383,120]
[406313222,1771722646527,-500.0,0.00044383,120]
[406313223,1771722646537,-500.0,0.00044383,120]
[406313224,1771722646546,-216.69637133,0.00044383,120]
[406313225,1771722646555,-500.0,0.00044383,120]